bitfinex-derivatives/quotes_SOLF0:USTF0_20250106
["timestamp","ask_amount","ask_price","bid_price","bid_amount"]
[1736189176172,13.30392655,218.95,218.89,2.68]
[1736189176371,11.02082655,218.95,218.89,2.68]
[1736189177474,2.2832,218.93,218.89,2.68]
[1736189177663,11.02082655,218.95,218.89,2.68]
[1736189178074,13.30392655,218.95,218.89,4.9636]
[1736189178874,13.30392655,218.95,218.89,2.68]
[1736189179068,13.30392655,218.95,218.9,2.2835]
[1736189181367,11.02082655,218.95,218.9,2.2835]
[1736189181573,11.02082655,218.95,218.89,2.68]
[1736189182470,2.2834,218.92,218.87,2.2838]
[1736189182670,13.30422655,218.92,218.88,2.68]
[1736189185671,11.02082655,218.98,218.88,2.68]
[1736189186273,2.283,218.95,218.9,2.2834]
[1736189187372,2.283,218.95,218.88,2.68]
[1736189187573,2.283,218.95,218.91,2.2834]
[1736189187878,2.2829,218.97,218.88,2.68]
[1736189188076,11.02082655,218.98,218.88,2.68]
[1736189188277,4.5629,219.11,218.88,2.68]
[1736189188278,11.02082655,219.01,218.88,2.68]
[1736189188478,11.02082655,219.01,218.96,2.2829]
[1736189188679,11.02082655,219.01,218.96,4.9829]
[1736189188874,11.02082655,219.04,218.96,2.7]
[1736189190077,2.2822,219.03,218.98,2.2827]
[1736189190274,11.02082655,219.04,218.96,2.7]
[1736189190684,13.30322655,219.01,218.96,4.9828]
[1736189191181,11.02082655,219.01,218.9,1.4145]
[1736189191378,11.02082655,218.98,218.91,2.7]
[1736189192076,2.2829,218.97,218.92,2.2833]
[1736189193979,2.2829,218.97,218.91,2.7]
[1736189194181,2.2829,218.97,218.93,2.2832]
[1736189194381,11.02082655,218.98,218.93,2.2832]
[1736189194382,13.30352655,218.98,218.93,2.2832]
[1736189195581,11.02082655,218.98,218.94,2.2831]
[1736189196178,13.30352655,218.98,218.93,2.2832]
[1736189198482,2.2827,218.98,218.94,2.2831]
[1736189200683,2.2825,219.01,218.94,2.2831]
[1736189200881,2.2825,219.01,218.91,2.7]
[1736189201087,11.02082655,219.02,218.91,2.7]
[1736189201782,2.2826,218.99,218.94,2.283]
[1736189201985,11.02082655,219.02,218.91,2.7]
[1736189202488,2.2828,218.98,218.93,2.2832]
[1736189203088,11.02082655,218.99,218.92,2.2833]
[1736189203688,2.2829,218.97,218.92,2.2833]
[1736189203989,2.2829,218.97,218.91,2.7]
[1736189204184,2.2829,218.97,218.93,2.2832]
[1736189204387,2.2827,218.98,218.93,2.2832]
[1736189208083,2.2827,218.98,218.94,2.7]
[1736189209590,2.2829,218.97,218.94,2.7]
[1736189210692,2.2827,218.98,218.94,4.9831]
[1736189214298,2.2828,218.97,218.94,4.9831]
[1736189214500,11.02082655,218.96,218.94,2.7]
[1736189215290,2.283,218.95,218.94,2.7]
[1736189215497,11.02082655,218.96,218.94,2.7]
[1736189215790,11.02082655,218.99,218.94,2.7]
[1736189217401,2.283,218.96,218.94,2.7]
[1736189217997,2.283,218.96,218.92,2.2832]
[1736189218197,2.283,218.96,218.92,4.9632]
[1736189219004,2.283,218.96,218.92,2.2832]
[1736189220392,11.02082655,218.99,218.91,2.68]
[1736189220596,2.2827,218.98,218.94,2.2831]
[1736189222606,11.02082655,218.99,218.91,2.68]
[1736189223401,2.2829,218.96,218.92,2.2832]
[1736189223604,11.02082655,218.99,218.91,2.68]
[1736189225108,11.02082655,219.05,218.91,13.70082655]
[1736189225299,11.02082655,219.05,218.92,1.5254]
[1736189225705,13.30282655,219.05,219.0,2.2825]
[1736189225903,13.30282655,219.05,219.0,4.9625]
[1736189226107,11.02082655,219.05,219.0,4.9625]
[1736189226302,2.2821,219.04,219.0,4.9625]
[1736189226809,11.02082655,219.05,219.0,2.68]
[1736189227010,11.02082655,219.05,219.01,2.2824]
[1736189227202,11.02082655,219.05,219.0,2.68]
[1736189227406,2.2822,219.04,219.0,4.9625]
[1736189228210,11.02082655,219.08,219.0,2.68]
[1736189228614,2.2819,219.06,219.03,2.2821]
[1736189228811,2.2819,219.06,219.0,2.68]
[1736189228812,11.02082655,219.08,219.0,2.68]
[1736189229311,2.2819,219.06,219.0,4.9624]
[1736189229511,11.02082655,219.08,219.0,4.9624]
[1736189229713,11.02082655,219.08,219.0,2.68]
[1736189230012,11.02082655,219.05,219.0,2.68]
[1736189230915,2.2823,219.03,219.0,2.68]
[1736189231312,11.02082655,219.05,219.0,4.9624]
[1736189231510,2.2821,219.04,219.0,4.9624]
[1736189231908,2.2821,219.04,219.01,2.2824]
[1736189232405,2.2822,219.03,219.0,4.9625]
[1736189233614,2.2822,219.03,219.0,2.68]
[1736189235213,7.0470115,219.01,219.0,2.68]
[1736189236717,9.3294115,219.01,219.0,2.68]
[1736189237117,2.2824,219.01,219.0,2.68]
[1736189237314,9.3294115,219.01,219.0,2.68]
[1736189239815,9.3294115,219.01,218.98,2.68]
[1736189240212,9.3296115,218.99,218.98,2.68]
[1736189241220,2.2829,218.97,218.95,2.8202]
[1736189241418,7.0470115,218.96,218.95,2.8202]
[1736189241722,7.0470115,218.96,218.93,2.68]
[1736189241918,9.3302115,218.94,218.93,2.68]
[1736189242120,7.0470115,218.94,218.9,6.25879729]
[1736189242320,7.45270026,219.12,218.88,2.9945]
[1736189242321,7.0470115,218.91,218.88,2.9945]
[1736189242522,7.0470115,218.91,218.89,2.68]
[1736189243523,9.3304115,218.91,218.89,2.68]
[1736189243724,7.0470115,218.9,218.89,2.68]
[1736189244323,7.0470115,218.9,218.88,5.6745]
[1736189245024,7.0470115,218.9,218.85,3.706]
[1736189245228,7.0470115,218.88,218.86,2.68]
[1736189245624,7.0470115,218.88,218.86,4.9639]
[1736189246026,7.0470115,218.88,218.86,2.68]
[1736189246531,7.0470115,218.92,218.89,2.2836]
[1736189247925,9.3304115,218.92,218.87,2.2837]
[1736189248725,7.0470115,218.92,218.88,2.2837]
[1736189251025,2.2832,218.93,218.86,2.68]
[1736189251226,7.0470115,218.97,218.9,9.3304115]
[1736189251434,7.0470115,218.97,218.91,2.68]
[1736189251934,9.3299115,218.97,218.91,4.9633]
[1736189252325,9.3299115,218.97,218.91,2.68]
[1736189252531,9.3299115,218.97,218.93,2.2832]
[1736189252932,8.18593079,219.09,218.96,2.2829]
[1736189253132,7.0470115,219.01,218.96,2.2829]
[1736189253325,7.0470115,219.01,218.96,4.9629]
[1736189253731,2.2826,219.0,218.96,4.9629]
[1736189254433,2.2826,219.0,218.96,2.68]
[1736189254635,2.2826,219.0,218.97,2.2827]
[1736189255029,2.2824,219.02,218.98,2.2827]
[1736189256634,2.2824,219.01,218.98,2.2827]
[1736189257741,7.0470115,219.01,218.96,2.68]
[1736189257937,7.0470115,219.01,218.99,2.2826]
[1736189259240,7.0470115,219.01,218.96,2.68]
[1736189259439,9.3294115,219.01,218.98,2.2827]
[1736189261240,9.3294115,219.01,218.97,2.2828]
[1736189265038,2.2823,219.02,218.98,2.2827]
[1736189266040,7.0470115,219.03,218.99,2.2825]
[1736189266239,7.0470115,219.05,218.98,7.0470115]
[1736189266439,7.0470115,219.05,218.99,1.4855]
[1736189266638,7.0470115,219.05,218.99,2.8923]
[1736189267032,7.45270026,219.12,219.0,7.0470115]
[1736189267229,7.0470115,219.07,219.01,2.68]
[1736189267742,9.3288115,219.07,219.03,2.2821]
[1736189268338,7.0470115,219.07,219.03,2.2821]
[1736189268539,2.2819,219.06,219.02,2.2822]
[1736189269641,2.2819,219.06,219.01,4.9624]
[1736189269935,7.0470115,219.07,219.01,4.9624]
[1736189270141,2.282,219.05,219.01,4.9624]
[1736189272441,2.282,219.05,219.01,2.68]
[1736189272837,9.3290115,219.05,219.01,2.68]
[1736189273044,2.282,219.05,219.01,2.68]
[1736189273342,9.3290115,219.05,219.01,2.68]
[1736189273544,2.2819,219.06,219.02,2.2823]
[1736189273941,7.0470115,219.07,219.01,2.68]
[1736189274234,2.2821,219.04,219.01,2.68]
[1736189274433,7.0470115,219.03,219.01,2.68]
[1736189274835,2.2823,219.02,219.01,2.68]
[1736189275036,7.0470115,219.03,219.01,2.68]
[1736189275545,2.2823,219.02,219.01,2.68]
[1736189276443,2.2829,218.96,218.91,2.2833]
[1736189276747,2.2829,218.96,218.92,2.68]
[1736189277134,2.2828,218.97,218.92,4.9633]
[1736189277543,2.2828,218.97,218.93,2.68]
[1736189279149,9.3297115,218.98,218.93,2.68]
[1736189279346,9.3297115,218.98,218.93,9.7270115]
[1736189279745,9.3297115,218.98,218.93,2.68]
[1736189279946,9.3297115,218.98,218.93,4.9632]
[1736189280249,2.2828,218.97,218.93,2.68]
[1736189281651,7.2428,219.11,218.93,2.68]
[1736189281950,7.0470115,218.99,218.93,2.68]
[1736189282151,7.0470115,218.99,218.94,7.0470115]
[1736189282346,7.0470115,218.99,218.95,2.2829]
[1736189283652,7.0470115,218.99,218.96,2.2829]
[1736189285255,2.2825,219.0,218.96,2.2829]
[1736189286952,2.2825,219.0,218.96,4.9629]
[1736189288759,7.0470115,219.01,218.96,4.9629]
[1736189289059,7.2428,219.11,218.96,9.7270115]
[1736189289259,7.0470115,219.08,219.0,7.0470115]
[1736189289452,7.45270026,219.12,219.02,7.0470115]
[1736189289757,7.0470115,219.11,219.04,7.0470115]
[1736189289953,2.2816,219.09,219.04,7.0470115]
[1736189290162,7.45270026,219.12,219.04,7.0470115]
[1736189291257,2.2815,219.1,219.06,7.0470115]
[1736189291558,2.2815,219.1,219.06,9.7270115]
[1736189293557,2.2816,219.09,219.06,2.68]
[1736189299167,7.0470115,219.11,219.06,2.68]
[1736189299767,2.2816,219.09,219.06,2.68]
[1736189306266,7.0470115,219.11,219.06,2.68]
[1736189306471,2.2818,219.07,219.06,2.68]
[1736189306768,7.0470115,219.09,219.04,2.68]
[1736189306961,2.2819,219.07,219.04,2.68]
[1736189308369,2.282,219.05,219.02,1.4671]
[1736189308569,7.0470115,219.05,219.01,2.68]
[1736189308776,7.0470115,219.05,218.99,7.0470115]
[1736189308969,7.0470115,219.05,219.0,2.68]
[1736189308970,2.2822,219.03,219.0,2.68]
[1736189309171,7.0470115,219.01,218.93,52.37674354]
[1736189309370,7.0470115,218.98,218.93,52.37674354]
[1736189309571,2.2829,218.97,218.93,52.37674354]
[1736189310275,2.2829,218.96,218.93,49.69674354]
[1736189310477,9.3299115,218.96,218.93,52.37674354]
[1736189314474,9.3299115,218.96,218.93,49.69674354]
[1736189314890,2.2831,218.94,218.93,49.69674354]
[1736189315082,9.3301115,218.94,218.93,49.69674354]
[1736189316882,2.2831,218.94,218.93,49.69674354]
[1736189317080,9.3301115,218.94,218.93,49.69674354]
[1736189317782,7.0470115,218.94,218.86,12.0109115]
[1736189317981,2.2835,218.91,218.86,12.0109115]
[1736189318675,2.2836,218.9,218.86,9.7270115]
[1736189319082,7.0470115,218.92,218.86,9.7270115]
[1736189319577,2.2835,218.91,218.86,9.7270115]
[1736189319776,7.0470115,218.92,218.86,9.7270115]
[1736189320484,7.0470115,218.9,218.82,2.2844]
[1736189320673,7.0470115,218.9,218.84,2.68]
[1736189321277,7.0470115,218.9,218.83,12.6289115]
[1736189322075,2.2839,218.87,218.83,12.6289115]
[1736189322581,2.2839,218.87,218.83,14.9132115]
[1736189324084,7.0470115,218.9,218.83,5.5819]
[1736189324383,7.0470115,218.9,218.83,2.9019]
[1736189324685,7.0470115,218.9,218.83,5.5819]
[1736189324883,2.2839,218.87,218.83,5.5819]
[1736189325684,2.284,218.86,218.83,5.5819]
[1736189329586,2.284,218.86,218.83,2.9019]
[1736189329785,2.284,218.86,218.83,5.5819]
[1736189333385,2.2841,218.85,218.83,5.5819]
[1736189334283,7.0470115,218.88,218.83,2.68]
[1736189334479,7.0470115,218.88,218.76,47.99406635]
[1736189334480,7.0470115,218.86,218.78,7.0470115]
[1736189334684,7.0470115,218.84,218.79,2.68]
[1736189335086,2.2844,218.82,218.79,2.68]
[1736189335391,7.0470115,218.86,218.79,2.68]
[1736189335581,7.0470115,218.88,218.8,9.3316115]
[1736189335986,7.0470115,218.88,218.82,7.0470115]
[1736189336389,2.68,218.93,218.82,7.0470115]
[1736189336587,7.0470115,218.89,218.82,7.0470115]
[1736189337091,2.2841,218.85,218.82,7.0470115]
[1736189337991,7.0470115,218.87,218.81,2.2844]
[1736189338292,2.2842,218.84,218.81,2.2844]
[1736189339190,7.0470115,218.87,218.79,2.68]
[1736189339387,2.2844,218.82,218.8,9.3316115]
[1736189339692,7.0470115,218.87,218.8,9.3316115]
[1736189340592,7.0470115,218.85,218.79,2.2847]
[1736189341595,7.0470115,218.83,218.77,7.0983]
[1736189341892,7.0470115,218.83,218.77,4.4183]
[1736189342396,2.2846,218.81,218.77,6.7032]
[1736189343296,2.2846,218.81,218.78,7.0470115]
[1736189343694,2.68,218.88,218.8,7.0470115]
[1736189343891,9.7270115,218.88,218.8,7.0470115]
[1736189344490,2.2841,218.85,218.8,9.3315115]
[1736189344692,9.7270115,218.88,218.8,9.3315115]
[1736189345197,2.2847,218.79,218.74,2.2851]
[1736189345498,2.2847,218.79,218.76,7.0470115]
[1736189345694,7.0470115,218.84,218.76,7.0470115]
[1736189346403,7.0470115,218.8,218.74,7.0470115]
[1736189346595,7.0470115,218.78,218.74,2.68]
[1736189346993,2.285,218.76,218.74,2.68]
[1736189348501,7.0470115,218.8,218.74,2.68]
[1736189348703,7.0470115,218.8,218.74,4.9652]
[1736189348901,7.0470115,218.8,218.74,12.0122115]
[1736189349704,2.2849,218.77,218.74,9.7270115]
[1736189349908,7.0470115,218.78,218.74,2.68]
[1736189350203,2.285,218.77,218.74,2.68]
[1736189356604,2.285,218.77,218.73,2.2852]
[1736189356805,7.0470115,218.78,218.73,2.2852]
[1736189357012,7.0470115,218.78,218.72,4.9653]
[1736189357809,2.2851,218.76,218.72,4.9653]
[1736189359004,2.2851,218.76,218.73,2.2853]
[1736189359210,7.0470115,218.76,218.72,2.68]
[1736189359410,2.2851,218.75,218.72,2.68]
[1736189359708,7.0470115,218.76,218.72,2.68]
[1736189359908,9.3320115,218.76,218.72,4.9653]
[1736189360608,2.2849,218.77,218.73,2.2853]
[1736189361512,2.285,218.76,218.72,4.9654]
[1736189361812,7.0470115,218.76,218.72,4.9654]
[1736189362514,7.0470115,218.74,218.68,3.0075]
[1736189362813,7.0470115,218.71,218.67,1.5118]
[1736189363014,9.3327115,218.69,218.67,1.5118]
[1736189363314,7.0470115,218.69,218.64,2.68]
[1736189363510,7.0470115,218.67,218.64,2.68]
[1736189363908,7.0470115,218.67,218.64,4.9662]
[1736189365116,9.3330115,218.67,218.63,1.5026]
[1736189365416,7.0470115,218.65,218.63,1.5026]
[1736189366315,2.68,218.77,218.63,1.5026]
[1736189366316,7.0470115,218.67,218.63,1.5026]
[1736189366814,9.3330115,218.67,218.63,1.5026]
[1736189368526,9.3330115,218.67,218.63,3.7889]
[1736189369325,7.0470115,218.67,218.63,1.5026]
[1736189369525,2.2861,218.65,218.61,4.9665]
[1736189370725,7.0470115,218.67,218.61,2.68]
[1736189370929,2.286,218.66,218.62,2.2864]
[1736189371925,2.2862,218.65,218.61,2.2865]
[1736189372528,2.68,218.72,218.6,12.7428115]
[1736189372733,7.0470115,218.67,218.6,12.7428115]
[1736189372930,2.68,218.72,218.6,4.1937]
[1736189373132,7.0470115,218.65,218.62,2.2865]
[1736189374631,9.3330115,218.67,218.62,2.2865]
[1736189375131,2.286,218.67,218.63,2.2863]
[1736189375723,2.286,218.67,218.64,2.2862]
[1736189376030,9.3328115,218.68,218.64,2.2862]
[1736189376230,7.0470115,218.68,218.6,11.2407115]
[1736189376633,7.0470115,218.66,218.63,2.2863]
[1736189378534,9.3331115,218.66,218.63,2.2863]
[1736189379336,7.0470115,218.66,218.6,1.5137]
[1736189379529,2.2861,218.65,218.62,2.2864]
[1736189380037,7.0470115,218.66,218.6,1.5137]
[1736189380231,2.2863,218.64,218.61,2.2865]
[1736189380630,7.0470115,218.64,218.31,40.16607316]
[1736189380825,7.0470115,218.6,218.53,7.0470115]
[1736189381531,2.2868,218.59,218.56,2.2871]
[1736189382336,7.0470115,218.58,218.56,2.2871]
[1736189382635,7.0470115,218.58,218.55,2.2872]
[1736189383336,7.0470115,218.58,218.52,2.68]
[1736189383639,9.3339115,218.58,218.51,9.7270115]
[1736189384835,2.2869,218.58,218.53,2.2873]
[1736189385131,2.68,218.67,218.51,9.7270115]
[1736189385132,7.0470115,218.62,218.55,7.0470115]
[1736189385332,7.0470115,218.6,218.53,7.0470115]
[1736189385527,2.2871,218.56,218.51,7.0470115]
[1736189385731,7.0470115,218.58,218.51,7.0470115]
[1736189386637,2.2871,218.56,218.51,2.2875]
[1736189386841,2.2871,218.56,218.51,7.0470115]
[1736189387337,7.0470115,218.58,218.5,2.68]
[1736189387538,2.2873,218.54,218.5,2.68]
[1736189387736,7.0470115,218.56,218.5,2.68]
[1736189389237,7.0470115,218.54,218.5,4.9676]
[1736189389445,7.0470115,218.52,218.48,2.9737]
[1736189389638,7.0470115,218.5,218.48,2.9737]
[1736189389840,9.3347115,218.5,218.45,2.2882]
[1736189390245,7.0470115,218.48,218.39,2.9454]
[1736189390543,7.0470115,218.46,218.39,2.9454]
[1736189390847,7.0470115,218.46,218.4,9.7270115]
[1736189391343,37.84675392,218.59,218.4,7.0470115]
[1736189391344,2.68,218.51,218.4,7.0470115]
[1736189391550,7.0470115,218.51,218.44,7.0470115]
[1736189391737,7.0470115,218.51,218.44,9.7270115]
[1736189391934,2.68,218.55,218.44,2.68]
[1736189392135,7.0470115,218.54,218.47,7.0470115]
[1736189392347,40.52675392,218.59,218.49,2.2878]
[1736189392548,7.0470115,218.55,218.47,7.0470115]
[1736189392743,7.0470115,218.55,218.49,7.0470115]
[1736189393547,7.0470115,218.55,218.47,7.0470115]
[1736189394141,7.0470115,218.53,218.48,2.2878]
[1736189394336,7.0470115,218.53,218.45,1.4531]
[1736189394540,7.0470115,218.53,218.46,7.0470115]
[1736189394938,7.0470115,218.55,218.52,2.2875]
[1736189396143,7.0470115,218.53,218.49,4.9677]
[1736189396746,9.3345115,218.53,218.49,4.9677]
[1736189396947,7.0470115,218.53,218.49,4.9677]
[1736189398449,2.2875,218.52,218.49,2.2877]
[1736189398654,2.2875,218.52,218.48,2.2879]
[1736189399153,7.0470115,218.49,218.45,2.2882]
[1736189399740,7.0470115,218.49,218.44,2.68]
[1736189399946,7.0470115,218.47,218.44,4.9683]
[1736189400550,9.3351115,218.47,218.44,2.68]
[1736189401249,9.3351115,218.47,218.41,7.0470115]
[1736189401554,9.3351115,218.47,218.42,2.68]
[1736189402457,9.3351115,218.47,218.43,2.2884]
[1736189402657,7.0470115,218.47,218.42,2.68]
[1736189402957,7.0470115,218.51,218.46,2.2881]
[1736189403357,9.3347115,218.51,218.46,2.2881]
[1736189404157,7.0470115,218.51,218.44,7.0470115]
[1736189404363,9.3349115,218.49,218.45,2.2882]
[1736189404566,9.3349115,218.49,218.42,9.7270115]
[1736189404757,7.0470115,218.47,218.42,2.68]
[1736189404956,7.0470115,218.47,218.41,8.5419115]
[1736189405159,7.0470115,218.45,218.43,2.2884]
[1736189405465,2.68,218.53,218.43,2.2884]
[1736189405466,7.0470115,218.47,218.43,2.2884]
[1736189405860,9.3350115,218.47,218.43,2.2884]
[1736189407163,2.68,218.53,218.45,2.2882]
[1736189407164,2.2879,218.48,218.45,2.2882]
[1736189407464,7.0470115,218.5,218.43,7.0470115]
[1736189407664,2.2878,218.49,218.44,2.2883]
[1736189407866,2.2878,218.49,218.42,9.7270115]
[1736189409366,2.2878,218.49,218.46,2.2881]
[1736189409566,37.84675392,218.59,218.44,7.0470115]
[1736189409866,7.0470115,218.52,218.44,7.0470115]
[1736189410165,2.2877,218.51,218.48,2.2879]
[1736189410365,7.0470115,218.52,218.45,7.0470115]
[1736189411863,2.2877,218.5,218.47,2.2879]
[1736189412265,7.0470115,218.52,218.42,2.68]
[1736189412467,7.0470115,218.52,218.44,7.0470115]
[1736189412862,2.2879,218.49,218.45,2.2881]
[1736189413070,7.0470115,218.53,218.46,7.0470115]
[1736189413370,2.2874,218.53,218.5,2.2877]
[1736189413770,7.0470115,218.55,218.48,9.7270115]
[1736189414064,2.2875,218.53,218.5,2.2877]
[1736189414970,2.287,218.58,218.52,7.0470115]
[1736189415368,7.0470115,218.59,218.54,2.2872]
[1736189415566,2.287,218.57,218.54,2.2872]
[1736189416965,2.287,218.57,218.53,2.2874]
[1736189417259,9.3340115,218.57,218.53,2.2874]
[1736189417459,2.2871,218.56,218.53,2.2874]
[1736189418861,2.287,218.57,218.54,2.2873]
[1736189421974,2.2871,218.56,218.53,2.2874]
[1736189423572,2.2871,218.56,218.52,4.9675]
[1736189424970,2.2871,218.56,218.52,2.68]
[1736189425172,2.2871,218.56,218.53,2.2874]
[1736189425372,2.2871,218.56,218.52,2.68]
[1736189426379,2.2871,218.56,218.53,2.2874]
[1736189427879,9.3340115,218.57,218.53,2.2874]
[1736189429379,2.2871,218.56,218.53,2.2874]
[1736189431482,2.287,218.57,218.53,2.2874]
[1736189431877,7.0470115,218.59,218.53,7.0470115]
[1736189432084,7.0470115,218.63,218.55,7.0470115]
[1736189432385,7.0470115,218.65,218.6,2.2866]
[1736189432591,2.68,218.71,218.59,7.0470115]
[1736189432782,7.0470115,218.64,218.57,9.7270115]
[1736189432984,7.0470115,218.64,218.59,2.2867]
[1736189434181,7.0470115,218.6,218.58,2.2869]
[1736189434682,7.0470115,218.6,218.56,2.68]
[1736189434881,9.3338115,218.6,218.56,4.9671]
[1736189435184,7.0470115,218.6,218.56,4.9671]
[1736189435385,9.3337115,218.6,218.56,4.9671]
[1736189437188,9.3337115,218.6,218.56,2.68]
[1736189437790,7.0470115,218.64,218.58,2.2869]
[1736189437979,7.0470115,218.64,218.57,7.0470115]
[1736189438183,2.2864,218.63,218.57,7.0470115]
[1736189438689,7.0470115,218.64,218.57,7.0470115]
[1736189438889,9.3333115,218.64,218.59,2.2867]
[1736189439391,2.2862,218.65,218.61,2.2865]
[1736189440289,7.0470115,218.66,218.61,2.2865]
[1736189440593,2.2863,218.64,218.61,2.2865]
[1736189441191,2.2863,218.64,218.6,2.2866]
[1736189441594,7.0470115,218.64,218.58,7.0470115]
[1736189441894,7.0470115,218.62,218.57,2.9229]
[1736189442290,7.0470115,218.6,218.57,2.9229]
[1736189443396,7.0470115,218.6,218.55,2.68]
[1736189444092,7.0470115,218.6,218.53,2.68]
[1736189444393,7.0470115,218.6,218.54,7.0470115]
[1736189445190,9.3335115,218.6,218.56,2.2868]
[1736189446603,7.0470115,218.6,218.57,2.2868]
[1736189447807,9.3335115,218.6,218.55,2.2869]
[1736189447999,9.3335115,218.6,218.54,7.0470115]
[1736189448197,9.3335115,218.6,218.55,2.287]
[1736189448399,2.2868,218.58,218.53,2.68]
[1736189448700,9.3338115,218.58,218.53,2.68]
[1736189450404,9.3338115,218.58,218.54,2.287]
[1736189450994,2.2868,218.57,218.54,2.287]
[1736189451503,7.0470115,218.58,218.54,2.287]
[1736189452400,2.68,218.66,218.53,2.68]
[1736189452606,7.0470115,218.6,218.53,2.68]
[1736189452997,7.0470115,218.62,218.56,2.2869]
[1736189453197,7.0470115,218.6,218.56,2.2869]
[1736189454196,9.3335115,218.6,218.56,2.2869]
[1736189456504,7.0470115,218.6,218.54,7.0470115]
[1736189456710,7.0470115,218.62,218.58,2.2867]
[1736189456905,8.12542305,218.72,218.58,9.7270115]
[1736189457103,7.0470115,218.66,218.6,7.0470115]
[1736189458102,7.0470115,218.66,218.63,2.2861]
[1736189458910,9.3330115,218.66,218.63,2.2861]
[1736189459111,11.04704789,218.68,218.62,2.2863]
[1736189460413,2.286,218.65,218.62,2.2863]
[1736189461212,11.04704789,218.65,218.59,2.8785]
[1736189461413,11.04704789,218.65,218.59,1.4038]
[1736189461807,2.2863,218.63,218.59,1.4038]
[1736189462013,2.2863,218.63,218.6,2.2864]
[1736189464312,2.2862,218.63,218.6,2.2865]
[1736189466809,2.2862,218.63,218.59,1.4038]
[1736189466810,11.04704789,218.68,218.62,2.2862]
[1736189467218,11.04704789,218.71,218.59,1.4038]
[1736189467419,2.2855,218.7,218.67,2.2857]
[1736189467817,11.04704789,218.74,218.63,2.68]
[1736189468020,2.2856,218.69,218.63,2.68]
[1736189469319,2.2856,218.69,218.65,2.2859]
[1736189470323,2.2856,218.69,218.66,2.2859]
[1736189471422,2.2855,218.7,218.66,2.2859]
[1736189472219,2.2856,218.69,218.66,2.2859]
[1736189472719,2.2857,218.68,218.65,2.286]
[1736189475225,2.2856,218.69,218.66,2.2858]
[1736189475425,11.04704789,218.74,218.63,2.68]
[1736189475628,11.04704789,218.74,218.64,1.5351]
[1736189475816,2.2853,218.72,218.68,2.2856]
[1736189476520,11.04704789,218.74,218.68,2.2856]
[1736189476722,11.04704789,218.74,218.69,2.2856]
[1736189476926,48.86343436,218.77,218.69,2.2856]
[1736189477624,48.86343436,218.77,218.7,2.2854]
[1736189478325,2.2852,218.73,218.7,2.2854]
[1736189479227,2.285,218.75,218.72,2.2853]
[1736189479721,2.2849,218.76,218.72,2.2853]
[1736189479930,4.32117725,218.78,218.74,2.285]
[1736189480529,2.2848,218.77,218.72,2.2852]
[1736189481126,2.2849,218.76,218.72,2.2852]
[1736189481327,2.24760108,218.8,218.72,2.2852]
[1736189482129,11.04704789,218.83,218.73,2.68]
[1736189482732,11.04704789,218.83,218.76,2.2848]
[1736189482733,2.2845,218.8,218.76,2.2848]
[1736189482933,11.04704789,218.83,218.76,2.2848]
[1736189483130,7.06018129,218.8,218.76,2.2848]
[1736189484533,7.06018129,218.8,218.77,2.2847]
[1736189486529,9.34458129,218.8,218.73,9.74018129]
[1736189487933,7.06018129,218.8,218.73,9.74018129]
[1736189488128,2.2846,218.79,218.73,9.74018129]
[1736189489536,2.2846,218.79,218.75,2.2849]
[1736189490635,7.06018129,218.8,218.76,2.2848]
[1736189490837,9.34468129,218.8,218.76,2.2848]
[1736189491336,9.34468129,218.8,218.77,2.2847]
[1736189491731,7.06018129,218.8,218.77,2.2847]
[1736189492527,7.06018129,218.82,218.77,2.2847]
[1736189493130,7.06018129,218.82,218.75,7.06018129]
[1736189493131,7.06018129,218.82,218.78,2.2846]
[1736189493330,7.06018129,218.84,218.78,2.68]
[1736189494444,2.2842,218.83,218.79,2.2845]
[1736189494634,2.2842,218.83,218.78,2.68]
[1736189495132,126.71253257,219.02,218.81,7.06018129]